{"text_format":"3","workbook":"xlsx","n_sheets":2,"sheets":["CBAN UPP-Lampsur","CBAN UPP"],"not_rendered":{"defined_names":1},"read":"whole","date_system":"1900"}

{"sheet":"CBAN UPP-Lampsur","index":0,"n_rows":262,"n_cols":12,"rows_kept":262,"merged":[[9,0,10,0],[9,1,10,3],[9,4,10,4],[9,5,10,5],[9,6,10,6],[9,7,10,8],[9,9,10,9],[11,1,11,3],[11,7,11,8],[12,1,12,3],[13,1,13,3],[13,8,14,8],[14,1,14,3],[15,2,15,3],[15,4,17,4],[16,2,16,3],[17,2,17,3],[18,1,18,3],[19,1,19,3],[20,1,20,3],[21,1,21,3],[22,2,22,3],[33,2,33,3],[34,2,34,3],[35,1,35,3],[36,2,36,3],[37,8,42,8],[47,2,47,3],[48,1,48,3],[49,2,49,3],[52,2,52,3],[53,2,53,3],[54,4,56,4],[57,2,57,3],[58,2,58,3],[58,8,62,8],[59,4,60,4],[61,2,61,3],[62,1,62,3],[63,1,63,3],[64,1,64,3],[65,1,65,3],[66,2,66,3],[67,1,67,3],[68,2,68,3],[69,1,69,3],[70,2,70,3],[71,1,71,3],[72,2,72,3],[73,1,73,3],[74,2,74,3],[75,1,75,3],[76,1,76,3],[77,1,77,3],[78,2,78,3],[78,8,84,8],[79,2,79,3],[80,2,80,3],[81,2,81,3],[82,2,82,3],[83,2,83,3],[84,2,84,3],[85,2,85,3],[86,2,86,3],[86,8,90,8],[87,2,87,3],[88,2,88,3],[89,2,89,3],[90,2,90,3],[91,2,91,3],[92,2,92,3],[93,1,93,3],[94,1,94,3],[95,1,95,3],[96,2,96,3],[96,8,103,8],[97,2,97,3],[98,2,98,3],[99,2,99,3],[100,2,100,3],[101,2,101,3],[102,2,102,3],[103,2,103,3],[104,2,104,3],[105,2,105,3],[106,1,106,3],[107,1,107,3],[108,1,108,3],[109,2,109,3],[109,8,115,8],[110,4,112,4],[113,2,113,3],[114,2,114,3],[115,2,115,3],[116,1,116,3],[117,1,117,3],[118,1,118,3],[119,2,119,3],[123,2,123,3],[124,1,124,3],[125,1,125,3],[126,1,126,3],[127,1,127,3],[128,2,128,3],[132,2,132,3],[133,2,133,3],[136,2,136,3],[137,1,137,3],[138,1,138,3],[139,1,139,3],[140,2,140,3],[140,8,143,8],[143,2,143,3],[144,2,144,3],[145,2,145,3],[146,1,146,3],[147,1,147,3],[148,1,148,3],[149,2,149,3],[150,8,154,8],[152,2,152,3],[153,1,153,3],[154,2,154,3],[157,2,157,3],[158,1,158,3],[158,8,161,8],[159,2,159,3],[162,1,162,3],[163,1,163,3],[164,2,164,3],[165,1,165,3],[166,1,166,3],[167,1,167,3],[168,2,168,3],[168,8,172,8],[175,2,175,3],[176,1,176,3],[177,1,177,3],[178,1,178,3],[179,2,179,3],[179,8,183,8],[183,2,183,3],[184,2,184,3],[191,1,191,3],[192,1,192,3],[193,1,193,3],[194,2,194,3],[194,8,198,8],[198,2,198,3],[199,1,199,3],[200,1,200,3],[202,1,202,3],[203,2,203,3],[204,2,204,3],[205,1,205,3],[206,2,206,3],[206,8,208,8],[207,2,207,3],[210,1,210,3],[211,1,211,3],[214,1,214,3],[215,1,215,3],[216,2,216,3],[216,8,221,8],[217,4,220,4],[221,2,221,3],[222,2,222,3],[222,8,224,8],[223,2,223,3],[224,2,224,3],[225,2,225,3],[226,2,226,3],[227,2,227,3],[228,2,228,3],[229,2,229,3],[230,1,230,3],[231,1,231,3],[232,2,232,3],[235,2,235,3],[236,2,236,3],[237,2,237,3],[238,2,238,3],[243,1,243,3],[244,1,244,3],[245,1,245,3],[246,1,246,3],[247,1,247,3],[248,1,248,3],[249,1,249,3],[252,1,252,3],[253,1,253,3],[254,1,254,3],[255,1,255,3]]}
[{"$nulls":6},"Lampiran ",":","Surat Sekretaris Daerah"]
[{"$nulls":8},"Nomor   :  065/       /02/2013"]
[{"$nulls":8},"Tanggal :          Juli 2013"]
[]
["KERTAS KERJA PENILAIAN MANDIRI KINERJA PEMBINA/PENANGGUNGJAWAB"]
["PENYELENGGARAAN PELAYANAN PUBLIK PADA PEMERINTAH KABUPATEN MAGELANG"]
["TAHUN 2013"]
["SKPD/UNIT KERJA : "]
[]
["NO","KOMPONEN, KINERJA, DAN INDIKATOR ",null,null,"NILAI MAKS","HASIL KERJA/PENILAIAN","NILAI","DOKUMEN PENDUKUNG",null,"KETERANGAN"]
[]
[1,2,null,null,3,4,5,6,null,7]
["A.","PENILAIAN IMPLEMENTASI UU 25/2009 TENTANG PELAYANAN PUBLIK"]
["1.","Kebijakan Tentang Penyelenggaraan Pelayanan Publik.",{"$nulls":6},"Softcopy dan hardcopy peraturan/kebijakan pimpinan.","Seluruh SKPD",null,1]
["1.1","Terbitnya/adanya peraturan/kebijakan pimpinan instansi dalam rangka mendorong penerapan UU 25/2009."]
[null,"a.","Ada dan mengacu sepenuhnya UU No. 25/2009",null,30]
[null,"b.","Ada, mengacu sebagian UU No. 25/2009"]
[null,"c.","Tidak ada"]
[null,"Nilai a = 30; b = 15; c = 0"]
[null,"Jumlah nilai KA 1",null,null,30]
["2.","Pembinaan, Pengawasan, dan Evaluasi Pelayanan Publik."]
["2.1","Terlaksananya pembinaan pelayanan publik."]
[null,"1.","Jumlah pembinaan oleh Pembina (dalam bentuk rapat, FGD, sosialisasi, seminar) yang didukung bukti dokumen berkenaan dengan penerapan UU No. 25/2009 dengan materi a.l:",null,20,{"$nulls":3},"Dokumen pelaksanaan pembinaan.","Seluruh SKPD",null,2]
[null,null,"a.","standar pelayanan;"]
[null,null,"b.","maklumat pelayanan;"]
[null,null,"c.","sistem informasi;"]
[null,null,"d.","pengelolaan sarana, prasarana, dan/atau fasilitas pelayanan publik;"]
[null,null,"e.","pengelolaan pengaduan;"]
[null,null,"f.","hak dan kewajiban penyelenggara dan pelaksana;"]
[null,null,"g.","peran serta masyarakat;"]
[null,null,"h.","penilaian kinerja;"]
[null,null,"i.","ketentuan sanksi;"]
[null,null,"j.","lain-lain."]
[null,null,"Setiap kali pembinaan dinilai 4; Nilai maksimal: 20"]
[null,null,"Jumlah Pembinaan: a=5kali atau lebih; b=4 kali; c=3 kali; d=2 kali; e=1 kali; dan f=tidak ada pembinaan."]
["2.2","Terlaksananya pengawasan/evaluasi pelayanan publik."]
[null,"1.","Jumlah pengawasan/evaluasi yang didukung bukti dokumen berkenaan dengan penerapan UU No. 25/2009 (Jumlah “Laporan Hasil Perkembangan Kinerja Pelayanan Publik” oleh Pembina atau “Laporan Hasil Pelaksanaan Penyelenggaraan Pelayanan Publik Di Seluruh Satuan Kerja Pelayanan Publik” oleh Penanggungjawab, atau dokumen lainnya yang serupa)  dengan lingkup materi a.l:",null,20,{"$nulls":3},"Laporan Hasil Perkembangan Kinerja Pelayanan Publik oleh Pembina;\n\natau \n","Seluruh SKPD",null,3]
[null,null,"a.","standar pelayanan;",{"$nulls":4},"Laporan Hasil Pelaksanaan Penyelenggaraan Pelayanan Publik di Seluruh Satuan Kerja Pelayanan Publik oleh Penanggungjawab "]
[null,null,"b.","maklumat pelayanan;"]
[null,null,"c.","sistem informasi;"]
[null,null,"d.","pengelolaan sarana, prasarana, dan/atau fasilitas pelayanan publik;"]
[null,null,"e.","pengelolaan pengaduan;"]
[null,null,"f.","hak dan kewajiban penyelenggara dan pelaksana;"]
[null,null,"g.","peran serta masyarakat;",{"$nulls":4},"atau "]
[null,null,"h.","penilaian kinerja;"]
[null,null,"i.","ketentuan sanksi;",{"$nulls":4},"dokumen lainnya yang serupa"]
[null,null,"j.","lain-lain."]
[null,null,"Setiap kali pengawasan (termasuk evaluasi yang dilakukan oleh satuan kerja yang ditangani oleh pembina/penanggungjawab) dinilai 4; Nilai maksimal: 20"]
["2.3","Terlaksananya tindak lanjut hasil pengawasan/evaluasi pelayanan publik."]
[null,"1.","Jumlah laporan pelaksanaan tindak lanjut pengawasan/evaluasi oleh Pembina (Jumlah “Laporan Hasil Perkembangan Kinerja Pelayanan Publik” atau “Laporan Hasil Pelaksanaan Penyelenggaraan Pelayanan Publik di Seluruh Satuan Kerja Pelayanan Publik”).",null,20,null,null,"a","Softcopy dan hardcopy Dokumentasi pertemuan resmi (rapat, FGD, sosialisasi, seminar) terkait materi pembinaan penerapan pelayanan publik.\n","Seluruh SKPD",null,4]
[{"$nulls":7},"b","“Laporan Hasil Perkembangan Kinerja Pelayanan Publik” atau dokumen sejenis yang disampaikanPembina Pemerintah Kabupaten kepada DPRD Kabupaten dan Gubernur setempat.",null,null,5]
[{"$nulls":7},"c","“Laporan Hasil Pelaksanaan Penyelenggaraan Pelayanan Publik Di Seluruh Satuan Kerja Pelayanan Publik” atau dokumen sejenis yang disampaikan Penanggung Jawab kepada Pembina.",null,null,6]
[null,null,"Setiap laporan pelaksanaan tindak lanjut pengawasan/evaluasi dinilai 4; Nilai maksimal: 20"]
[null,"2.","Adanya peraturan/kebijakan yang mengatur pemberian penghargaan kepada pelaksana yang berprestasi dalam penyelenggaraan pelayanan publik.",{"$nulls":6},"Seluruh SKPD"]
[null,null,"a.","Sudah ada, dan diimplementasikan",15,{"$nulls":3},"Softcopy dan hardcopy Peraturan/kebijakan pemberian penghargaan kepada pelaksana yang berprestasi dalam penyelenggaraan pelayanan publik.",null,null,7]
[null,null,"b.","Sudah ada, tidak diimplementasikan"]
[null,null,"c.","Tidak ada"]
[null,null,"Nilai a = 15; b = 7; c = 0"]
[null,"3.","Adanya peraturan/kebijakan pengenaan sanksi atas hasil evaluasi kepada pelaksana yang melakukan pelanggaran atas penyelenggaraan pelayanan publik.",{"$nulls":5},"Softcopy dan hardcopy Peraturan/kebijakan pengenaan sanksi atas hasil evaluasi kepada pelaksana yang melakukan pelanggaran atas penyelenggaraan pelayanan publik.","Seluruh SKPD",null,8]
[null,null,"a.","Ada",15]
[null,null,"b.","Tidak ada"]
[null,null,"Nilai a = 15; b = 0"]
[null,"Jumlah nilai KA 2-3",null,null,50]
[null,"Jumlah nilai KA 2",null,null,90]
["3.","Pembinaan Teknis Terhadap Unit Pelayanan Publik."]
["3.1","Terlaksananya sosialisasi kebijakan pelayanan publik (aspek-aspek dalam UU 25/2009) kepada unit pelayanan publik."]
[null,"1.","Jumlah laporan pelaksanaan sosialisasi kebijakan pelayanan publik pada unit pelayanan publik.\nCatatan: setiap kali sosialisasi dinilai 2; Nilai maksimal 20.",null,20,{"$nulls":3},"Softcopy dan hardcopy dokumen Laporan pelaksanaan sosialisasi kebijakan pelayanan publik.","Seluruh SKPD",null,9]
["3.2","Terlaksananya bimbingan teknis kepada pegawai unit pelayanan berkaitan dengan substansi tugas pokok unit pelayanannya."]
[null,"1.","Jumlah laporan pelaksanaan bimbingan teknis kepada pegawai unit pelayanan tentang tugas pokok unit pelayanan publiknya.\nCatatan: setiap kali bimbingan teknis dinilai 4; Nilai maksimal 20.",null,20,{"$nulls":3},"Softcopy dan hardcopy dokumen Laporan pelaksanaan bimbingan teknis kepada pegawai unit pelayanan.","Seluruh SKPD",null,10]
["3.3","Terpantau dan terevaluasinya pelaksanaan kebijakan pelayanan publik."]
[null,"1.","Jumlah “Laporan Hasil Pemantauan dan Evaluasi Penyelenggaraan Pelayanan Publik” (yang memuat: capaian dan target; kesenjangan dan permasalahannya, simpulan dan rekomendasi yang mengacu standar pelayanan).\nCatatan: setiap kali monev dinilai 2; Nilai maksimal 10.",null,10,{"$nulls":3},"Softcopy dan hardcopy dokumen “Laporan Hasil Pemantauan dan Evaluasi Penyelenggaraan Pelayanan Publik”","Seluruh SKPD\n",null,11]
["3.4","Unit pelayanan yang menindaklanjuti hasil monitoring dan evaluasi."]
[null,"1.","Jumlah unit pelayanan yang menindaklanjuti “Laporan Hasil Pemantauan dan Evaluasi Penyelenggaraan Pelayanan Publik”.\nCatatan: Setiap unit yang menindaklanjuti hasil monev dinilai 2; Nilai Maksimal 10.",null,10,{"$nulls":3},"Softcopy dan hardcopy dokumen “Laporan Tindak Lanjut Hasil Pemantauan dan Evaluasi Penyelenggaraan Pelayanan Publik”","- seluruh SKPD\n- seluruh UPT (dikoordinir oleh masing-masing SKPD terkait)",null,12]
["3.5","Unit pelayanan yang mendapatkan penghargaan baik dari pembina maupun pihak lainnya."]
[null,"1.","Jumlah penghargaan yang diterima unit pelayanan publik karena menunjukkan prestasi kerja yang baik.\nCatatan: setiap penghargaan dinilai 1, nilai maksimal 10.",null,10,{"$nulls":3},"Dokumen Penghargaan yang diterima unit pelayanan publik.","- seluruh SKPD\n- seluruh UPT (dikoordinir oleh masing-masing SKPD terkait)",null,13]
[null,"Jumlah nilai KA 3",null,null,70]
["4.","Pelayanan Terpadu Satu Pintu (PTSP)."]
["4.1","Terbentuk dan terlaksananya PTSP."]
[null,"a.","Adanya peraturan/kebijakan pembentukan/penetapan PTSP.",null,10,{"$nulls":3},"Softcopy dan hardcopy dokumen pembentukan/ penetapan, termasuk jenis pelayanan dan kewenangan yang dilimpahkan kepada Kepala PTSP.","Bagian Organisasi",null,14]
[null,null,"Catatan: sudah dibentuk = 10; belum dibentuk = 0"]
[null,"b.","Adanya peraturan/kebijakan yang mengatur pelimpahan/pendelegasian wewenang kepada Kepala PTSP.",null,10,{"$nulls":4},"Bagian Organisasi"]
[null,null,"Catatan: Sudah ditetapkan = 10 ; belum ada ketetapan = 0"]
[null,"c.","Jumlah jenis pelayanan pada PTSP.",null,15,{"$nulls":4},"BPMPPT"]
[null,null,"Catatan: Setiap jenis pelayanan dinilai 1: jumlah maksimal = 15."]
[null,"d.","Jumlah/% jenis pelayanan pada PTSP yang telah dilimpahkan/ didelegasikan kewenangannya kepada Kepala PTSP.",null,15,{"$nulls":4},"BPMPPT"]
[null,null,"Catatan: Setiap jenis pelayanan yang telah dilimpahkan dinilai 1; jumlah maksimum 15."]
[null,"e.","Peringkat kualifikasi PTSP tertinggi yang pernah diperoleh.",null,25,{"$nulls":3},"Softcopy dan hardcopy dokumen peringkat kualifikasi tertinggi yang pernah diperoleh PTSP tersebut.","BPMPPT",null,15]
[null,null,"a. Bintang 4 diberi nilai 25"]
[null,null,"b. Bintang 3 diberi nilai 20"]
[null,null,"c. Bintang 2 diberi nilai 15"]
[null,null,"d. Bintang 1 diberi nilai 10"]
[null,null,"e. Non Bintang diberi nilai 5"]
[null,null,"f. Tidak dinilai diberi nilai 0"]
[null,"Jumlah nilai KA 4",null,null,75]
["5.","Evaluasi Kinerja Pelaksana Dalam Penyelenggaraan Pelayanan Publik."]
["5.1","Adanya kebijakan untuk meningkatkan kapasitas pelaksana, pemberian penghargaan, dan penegakan disiplin."]
[null,"a.","Adanya peraturan/kebijakan tentang peningkatan kapasitas pelaksana.",null,20,{"$nulls":3}," Softcopy dan hardcopy dokumen yang mengatur peningkatan kapasitas, pemberian penghargaan, pemberian sanksi, dan pemberian tugas belajar/diklat fungsional/teknis bagi pelaksana.","Seluruh SKPD",null,16]
[null,null,"Catatan: a. Ada = 20; Tidak ada = 0"]
[null,"b.","Adanya peraturan/kebijakan tentang pemberian penghargaan kepada pelaksana yang dinilai mempunyai prestasi kerja yang baik.",null,15,{"$nulls":4},"Seluruh SKPD"]
[null,null,"Catatan: Ada = 20; Tidak ada = 0"]
[null,"c.","Adanya peraturan/kebijakan yang mengatur pemberian sanksi terhadap pelaksana yang meanggar penyelenggaraan pelayanan publik.",null,15,{"$nulls":4},"Seluruh SKPD"]
[null,null,"Catatan: Ada = 15; Tidak ada = 0"]
[null,"d.","Jumlah pegawai yang ditugaskan untuk mengikuti tugas belajar, diklat fungsional/teknis minimal 24 jam.",null,20,{"$nulls":4},"Seluruh SKPD dan di cros chesk dg data di BKD"]
[null,null,"Catatan: Nilai tugas belajar S3: 3; S2: 2; diklat fungsional/teknis: 1; Nilai maksimal: 20"]
[null,"e.","Jumlah penghargaan yang diberikan kepada pegawai unit pelayanan publik yang menunjukkan prestasi kerja yang baik.",null,10,{"$nulls":4},"Seluruh SKPD"]
[null,null,"Catatan: Nilai setiap penghargaan: 1; Nilai maksimal: 10"]
[null,"Jumlah nilai KA 5",null,null,80]
["6.","Kebijakan Penyusunan, Penetapan Dan Penerapan Standar Pelayanan Serta Maklumat Pelayanan."]
["6.1","Tersedia dan terimplementasikannya standar pelayanan serta maklumat pelayanan."]
[null,"a.","Adanya peraturan/kebijakan instansi yang mendorong penyusunan, penetapan dan penerapan standar pelayanan dan maklumat pelayanan yang mengacu UU 25/2009.",null,25,{"$nulls":3},"Softcopy dan hardcopy dokumen yang mendorong dan menginformasikan penyusunan, penetapan dan penerapan standar pelayanan dan maklumat pelayanan yang mengacu UU 25/2009.","Seluruh SKPD",null,17]
[null,null,"a.","Ada dan mengacu UU No. 25/2009."]
[null,null,"b.","Ada, sebagian mengacu UU No. 25/2009."]
[null,null,"c.","Tidak ada."]
[null,null,"Catatan: Nilai a = 25; b = 10; c = 0"]
[null,"b.","Jumlah unit pelayanan yang sudah menyusun, menetapkan dan menerapkan standar pelayanan publik (SPP).",null,50,{"$nulls":4},"Seluruh SKPD dan UPT"]
[null,null,"Catatan: Nilai setiap unit = 5; Nilai maksimal = 50"]
[null,"Jumlah nilai KA 6",null,null,75]
["7.","Larangan Bagi Pelaksana."]
["7.1","Adanya Larangan Bagi Pelaksana."]
[null,"a.","Adanya peraturan/kebijakan tentang larangan bagi Pelaksana sebagaimana dimaksud dalam UU No. 25/2009 Pasal 17.",null,25,{"$nulls":3},"Softcopy dan hardcopy dokumen tentang larangan:","Seluruh SKPD",null,18]
[null,null,"a.","Ada, mencakup seluruh unsur.",{"$nulls":3},"a.","pelaksana merangkap sebagai komisaris atau pengurus organisasi usaha bagi pelaksana yang berasal dari lingkungan instansi pemerintah, BUMN, dan BUMD. "]
[null,null,"b.","Ada, tidak mencakup seluruh unsur.",{"$nulls":3},"b.","pelaksana meninggalkan tugas dan kewajiban, kecuali mempunyai alasan yang jelas, rasional, dan sah sesuai dengan peraturan perundang-undangan."]
[null,null,"c.","Tidak ada",{"$nulls":3},"c.","menambah pelaksana tanpa persetujuan penyelenggara."]
[null,null,"Nilai a = 25; b = 10; c = 0",{"$nulls":4},"d.","membuat perjanjian kerja sama dengan pihak lain tanpa persetujuan penyelenggara."]
[{"$nulls":7},"e.","melanggar asas penyelenggaraan pelayanan publik."]
[null,"Jumlah nilai KA 7",null,null,25]
["8.","Sistem Informasi Pelayanan Publik."]
["8.1","Terbangunnya sistem informasi pelayanan publik.",{"$nulls":7},"Seluruh SKPD"]
[null,"a.","Adanya kebijakan tentang sistem informasi pelayanan publik yang mengacu pada pasal 23 ayat (4) UU No. 25/2009.",null,25,{"$nulls":3},"Softcopy dan hardcopy dokumen:",null,null,19]
[null,null,"a.","Ada, mencakup seluruh unsur.",{"$nulls":3},"a.","pengaturan sistem informasi pelayanan publik; dan"]
[null,null,"b.","Ada, tidak mencakup seluruh unsur.",{"$nulls":3},"b.","pembentukan PPID."]
[null,null,"c.","Tidak ada."]
[null,null,"Nilai a = 25; b = 10; c = 0"]
[null,"b.","Adanya penunjukan Pejabat Pengelola Informasi dan Dokumentasi (PPID).",null,15,{"$nulls":4},"Bagian Organisasi"]
[null,null,"a.","Sudah ditunjuk;",{"$nulls":5},"Diskominfo"]
[null,null,"b.","Belum ditunjuk."]
[null,null,"Nilai a = 15; b = 0"]
[null,"Jumlah nilai KA 8",null,null,40]
["9.","Pelayanan Khusus."]
["9.1","Adanya kebijakan dalam pemberian pelayanan khusus kepada masyarakat tertentu atau rentan."]
[null,"a.","Adanya kebijakan pemberian pelayanan khusus kepada masyarakat tertentu atau rentan dan pelayanan berjenjang.",null,15,{"$nulls":3},"Softcopy dan hardcopy dokumen pengaturan pemberian pelayanan khusus kepada masyarakat tertentu atau rentan.","Seluruh SKPD dan UPT",null,20]
[null,null,"a.","Ada"]
[null,null,"b.","Tidak ada"]
[null,null,"Nilai a = 15; b = 0"]
[null,"b.","Jumlah unit pelayanan yang telah mengimplementasikan pemberian pelayanan khusus kepada masyarakat tertentu atau rentan.",null,10,{"$nulls":4},"Seluruh SKPD dan UPT"]
[null,null,"Tiap unit dinilai = 1; Nilai maksimal= 10"]
[null,"Jumlah nilai KA-9",null,null,25]
["10.","Pengelolaan Pengaduan."]
["10.1","Adanya kebijakan pengelolaan pengaduan"]
[null,"a.","Adanya peraturan/kebijakan pimpinan instansi yang mengatur pengelolaan pengaduan beserta pelaksana yang bertanggung jawab.",null,20,{"$nulls":3},"Softcopy dan hardcopy dokumen:","Seluruh SKPD "]
[null,null,"a.","Ada",{"$nulls":3},"a.","peraturan/kebijakan pimpinan instansi yang mengatur mekanisme pengelolaan pengaduan beserta pelaksana yang bertanggung jawab.",null,null,21]
[null,null,"b.","Tidak ada"]
[null,null,"Nilai a = 20; b = 0"]
["10.2","Tersusunnya mekanisme pengelolaan pengaduan.",{"$nulls":7},"Seluruh SKPD dan UPT"]
[null,"a.","Mekanisme pengelolaan pengaduan sudah ditetapkan.",null,20]
[null,null,"a.","Sudah."]
[null,null,"b.","Belum."]
[null,null,"Nilai a = 20; b = 0"]
["10.3","Terpantau dan terevaluasinya pengelolaan pengaduan.",{"$nulls":5},"b.","laporan hasil pemantauan dan evaluasi pengelolaan pengaduan penyelenggaraan pelayanan publik.","Seluruh SKPD",null,22]
[null,"a.","Monitoring dan evaluasi pengelolaan pengaduan oleh penyelenggara pelayanan publik sudah dilakukan.",null,20]
[null,null,"a.","Sudah."]
[null,null,"b.","Belum."]
[null,"Nilai a = 20 ; b = 0"]
["10.4","Unit pengelola pengaduan",{"$nulls":7},"Seluruh SKPD"]
[null,"a.","Jumlah unit pelayanan yang menyediakan sarana pengaduan dalam pengelolaan pengaduan.\nSetiap unit dinilai 2; nilai maksimal : 10.",null,10]
[null,"Jumlah nilai KA-10",null,null,70]
["11.","Peran Serta Masyarakat."]
["11.1","Adanya kebijakan pengikutsertaan masyarakat dalam penyelenggaraan pelayanan publik.",{"$nulls":7},"Seluruh SKPD"]
[null,"a.","Adanya peraturan/kebijakan yang mengatur pengikutsertaan masyarakat dalam penyelenggaraan pelayanan publik dengan cakupan aspek:",null,30,{"$nulls":3},"Softcopy dan hardcopy dokumen yang mengatur pengikutsertaan masyarakat dalam penyelenggaraan pelayanan publik.",null,null,23]
[null,null,"a.","mekanisme pelibatan masyarakat;"]
[null,null,"b.","pengaturan kelompok masyarakat yang diikutsertakan;"]
[null,null,"c.","penyusunan kebijakan pelayanan publik;"]
[null,null,"d.","penyusunan standar pelayanan;"]
[null,null,"e.","pengawasan masyarakat;"]
[null,null,"f.","evaluasi dan pemberian penghargaan."]
[null,null,"Setiap aspek dalam kebijakan dinilai 5; nilai maksimal 30"]
[null,"Jumlah nilai KA-11",null,null,30]
["12.","Survey Indeks Kepuasan Masyarakat (IKM)."]
["12.1","Adanya kebijakan survei IKM.",{"$nulls":7},"Seluruh SKPD"]
[null,"1.","Adanya peraturan/kebijakan yang mengatur pelaksanaan survey IKM dan tindak lanjutnya oleh penyelenggara.",null,20,{"$nulls":3},"Softcopy dan hardcopy dokumen yang mengatur pelaksanaan survey IKM dan tindak lanjutnya oleh penyelenggara.",null,null,24]
[null,null,"a.","Ada, lengkap"]
[null,null,"b.","Ada, tetapi tidak mencakup tindak lanjut"]
[null,null,"c.","Tidak ada"]
[null,null,"Catatan: Nilai a = 20; b = 10 ; c = 0"]
[null,"2.","Terlaksananya survey IKM.",null,25,{"$nulls":4},"Seluruh SKPD dan UPT"]
[null,null,"1.","Jumlah unit pelayanan yang telah melaksanakan survey IKM."]
[null,null,"a.","Setiap unit dengan menggunakan KepMenPAN No. 25 Tahun 2004 mendapat nilai 3.",{"$nulls":4},"Softcopy dan hardcopy cakupan Laporan Hasil Penyusunan Indeks Kepuasan Masyarakat.",null,null,25]
[null,null,"b.","Setiap unit dengan menggunakan selain KepMenPAN No. 25 Tahun 2004 mendapat nilai 1."]
[{"$nulls":3},"Nilai maksimal: 25"]
[null,null,"2.","Jumlah unit pelayanan yang menindaklanjuti hasil survei IKM.",15,{"$nulls":4},"Seluruh SKPD dan UPT\n"]
[{"$nulls":3},"Setiap unit dinilai 3; Nilai maksimal = 15"]
[null,"Jumlah nilai KA-12",null,null,60]
["13.","Pengelolaan Sarana, Prasarana, dan/atau Fasilitas Pelayanan Publik."]
["13.1","Terkelolanya Sarana, Prasarana, dan/atau Fasilitas Pelayanan Publik.",{"$nulls":7},"Seluruh SKPD"]
[null,"a.","Adanya peraturan/kebijakan yang mengatur pengelolaan sarana, prasarana, dan/atau fasilitas dalam penyelenggaraan pelayanan publik.",null,30,{"$nulls":3},"Dokumen yang mengatur pengelolaan sarana, prasarana, dan/atau fasilitas dalam penyelenggaraan pelayanan publik.",null,null,26]
[null,null,"a.","Ada, dan cukup lengkap."]
[null,null,"b.","Ada, tetapi kurang lengkap."]
[null,null,"c.","Tidak ada."]
[null,null,"Nilai a = 30; b = 15; c = 0"]
[null,"Jumlah nilai KA-13",null,null,30]
[null,"Jumlah nilai KA-UPP",null,null,700]
[]
["B.","PENILAIAN KINERJA PEMBINA/PENANGGUNGJAWAB"]
[null,"1.","Kebijakan Korporatisasi Unit Pelayanan."]
[null,null,"Jumlah unit pelayanan yang berdasar Keputusan Kepala Daerah ditetapkan untuk menerapkan pola pengelolaan keuangan badan layanan umum.",null,20,{"$nulls":3},"Keputusan Kepala Daerah tentang penetapan/penerapan pola pengelolaan keuangan badan layanan umum pada unit pelayanan dimaksud.","Seluruh SKPD (RSUD atau yang lainnya) ",null,27]
[null,"Jumlah nilai KB 1",null,null,20]
["2.1",null,"Penerapan Standar Pelayanan Minimal (SPM) dan Human Developmen Index (HDI).",{"$nulls":5},"Softcopy dan hardcopy dokumen peraturan/kebijakan penerapan standar pelayanan minimal (SPM).","Seluruh SKPD",null,28]
[null,null,"Terimplementasikannya SPM dan HDI."]
[{"$nulls":3},"Adanya peraturan/kebijakan tentang penerapan standar pelayanan minimal (SPM).",20]
[{"$nulls":3},"Catatan: Nilai: a (ada) = 20;   b (Tidak ada) = 0"]
["2.2","Persentase capaian target penerapan standar pelayanan minimal (SPM) bidang pendidikan.\na. 80% - 100%  dinilai 15\nb. 60% - < 80% dinilai 10\nc. 25% - < 60%  dinilai 5\nd. < 25%             dinilai 0",null,null,15,{"$nulls":3},"Softcopy dan hardcopy dokumen laporan pelaksanaan SPM bidang pendidikan kabupaten. ","Dinas Pendidikan",null,29]
["2.3","Persentase capaian target penerapan standar pelayanan minimal (SPM) bidang kesehatan.\na. 80% - 100%  dinilai 15\nb. 60% - < 80% dinilai 10\nc. 25% - < 60%  dinilai 5\nd. < 25%             dinilai 0",null,null,15,{"$nulls":3},"Softcopy dan hardcopy dokumen laporan pelaksanaan SPM bidang  kesehatan. ","Dinas Kesehatan",null,30]
[null,null,"6.","Persentase rata-rata kenaikan Human Development Index (HDI) dalam tahun penilaian.",10,{"$nulls":3},"Softcopy dan hardcopy dokumen Laporan human development index kabupaten.","Bappeda / Bagian Adm Bangda",null,31]
[{"$nulls":3},"Catatan: Setiap 1% rata-rata kenaikan dinilai 3; Nilai maksimal 10"]
[null,"Jumlah nilai KB 2 – Pemerintah Kabupaten/Kota",null,null,60]
["3.","Kebijakan Dalam Mendorong Pembangunan Ekonomi Daerah Beserta Outcomenya."]
[null,"1.","Adanya peraturan/keputusan/kebijakan yang mengatur kemudahan penanaman modal di daerah, seperti penyediaan lokasi, kemudahan perijinan, pembebasan pajak daerah untuk jangka waktu tertentu.",{"$nulls":5},"Softcopy dan hardcopy dokumen peraturan/kebijakan yang mengatur kemudahan penanaman modal di daerah, seperti penyediaan lokasi, kemudahan perijinan, pembebasan pajak daerah untuk jangka waktu tertentu.","- BPMPPT\n- Bagian Hukum\n\n",null,32]
[null,null,"a.","ditetapkan dengan peraturan daerah dinilai 10",10]
[null,null,"b.","ditetapkan dengan peraturan gubernur/bupati/walikota dinilai 5"]
[null,null,"c.","ditetapkan dengan keputusan gubernur/bupati/walikota dinilai 2"]
[null,null,"d.","Tidak ada"]
[null,null,"Catatan: Nilai a = 10; b =5; c = 2; d = 0"]
[null,"2.","Persentase rata-rata per tahun peningkatan produk domestik regional bruto (PDRB).",null,10,{"$nulls":3},"Softcopy dan hardcopy dokumen komparasi PDRB, PAD, lapangan kerja, dan angka kemiskinan (jika tersedia, diharapkan mulai tahun 2009).","Bagian Perekonomian/Bappeda/Bagian Adm Bangda",null,33]
[null,null,"Catatan: Setiap 1% rata-rata kenaikan dinilai 2; Nilai maksimal 10"]
[null,"3.","Persentase rata-rata kenaikan per tahun jumlah penerimaan PAD dalam 3 tahun terakhir.",null,10,{"$nulls":4},"DPPKAD\n",null,34]
[null,null,"Catatan: Setiap 1% rata-rata kenaikan dinilai 1; Nilai maksimal 10"]
[null,"4.","Persentase rata-rata kenaikan per tahun penyediaan lapangan kerja dalam 3 tahun terakhir.",null,10,{"$nulls":3},"Data angkatan kerja, pencari kerja, pekerja dan penganggur","Disnakersostrans\n",null,35]
[null,null,"Catatan: Setiap 1% rata-rata kenaikan dinilai 1; Nilai maksimal 10"]
[null,"5.","Persentase rata-rata per tahun penurunan angka kemiskinan dalam 3 tahun terakhir.",null,10,{"$nulls":4},"Bappeda\n",null,36]
[null,null,"Catatan: Setiap 1% rata-rata penurunan dinilai 1; Nilai maksimal 10"]
[null,"Jumlah nilai KB 3",null,null,50]
["4.","Kebijakan Pengembangan dan Pemanfaatan e-Government."]
[null,"1.","Adanya peraturan/kebijakan pimpinan yang mengatur penerapan e-government (e-planning; e-budgeting; e-procurement; e-performance; e-office; e-reporting).",null,30,{"$nulls":3},"Softcopy dan hardcopy dokumen penerapan e-government.","Seluruh SKPD",null,37]
[null,null,"a.","ada kebijakan untuk setiap jenis aplikasi yang dibuat"]
[null,null,"b.","Tidak ada kebijakan"]
[null,null,"Catatan: Nilai a = 5; b = 0; Nilai maksimal = 30"]
[null,"2.","Jumlah unit kerja yang menerapkan e-government.",null,10,{"$nulls":4},"Seluruh SKPD\n"]
[null,null,"Catatan: Nilai tiap unit kerja: 1; Nilai maksimal: 10"]
[null,"3.","Adanya situs instansi yang menyajikan informasi mutakhir tentang:",{"$nulls":5},"Nama situs/home page","Seluruh SKPD",null,38]
[null,null,"a.","Data umum yang memuat peraturan/keputusan/kebijakan.",5]
[null,null,"b.","Profil",5]
[null,null,"c.","Jenis pelayanan yang diberikan",5]
[null,null,"d.","Link pengelolaan pengaduan",5]
[null,"Sub jumlah nilai KB 4.3",null,null,20]
[null,"Sub jumlah nilai KB4",null,null,60]
["5.","Penerapan SMM dan/atau ISO 9001-2008 dalam pelayanan publik.\n(untuk jenis/unit/satuan kerja yang sama hanya dihitung satu kali)."]
[null,"Terimplementasikannya SMM dan/atau ISO 9001-2008 dalam pelayanan publik."]
["5.1","Jumlah unit pelayanan yang telah menerapkan persyaratan sistem manajemen mutu ISO 9001-2008 (dibuktikan paling tidak dengan adanya manual mutu unit pelayanan sesuai ISO dimaksud).\nSetiap unit pelayanan dinilai 2; nilai maksimal: 10",null,null,10,{"$nulls":3},"Softcopy dan hardcopy dokumen manual mutu dan/atau sertifikat sistem manajemen mutu  ISO 9001-2008.","Seluruh SKPD dan UPT\n",null,39]
["5.2","Jumlah satuan kerja pelayanan yang telah menerapkan persyaratan sistem manajemen mutu ISO 9001-2008 (dibuktikan paling tidak dengan adanya manual mutu satuan kerja pelayanan sesuai ISO dimaksud).\nSetiap satker dinilai 10; nilai maksimal: 20",null,null,20,{"$nulls":4},"Seluruh SKPD dan UPT\n\n"]
["5.3","Jumlah unit pelayanan yang telah mendapatkan Sertifikat Sistem Manajemen Mutu ISO 9001-2008. Nilai maksimal: 20",null,null,20,{"$nulls":4},"Seluruh SKPD dan UPT\n\n"]
[null,null,"a.","Bersertifikasi sebagian dinilai: 4"]
[null,null,"b.","Bersertifikasi secara menyeluruh dinilai: 10"]
["5.4","Jumlah satuan kerja pelayanan yang telah mendapatkan sertifikat Sistem Manajeme Mutu ISO 9001-2008 secara menyeluruh.\na. Satuan kerja pelayanan bersertifikat SMM ISO 9001-2008 dinilai: 20\nb. Nilai maksimal: 60",null,null,60,{"$nulls":4},"Seluruh SKPD dan UPT\n\n"]
[null,"Jumlah nilai KB 5",null,null,110]
[null,"Jumlah nilai KB-UPP",null,null,300]
[null,"Jumlah nilai KA dan KB UPP",null,null,1000]
[]
[{"$nulls":8},"..........................., ............................."]
[{"$nulls":8},"KEPALA SKPD"]
[]
[{"$nulls":8},"......................................."]
[{"$nulls":8},"NIP. ................................."]

{"sheet":"CBAN UPP","index":1,"n_rows":262,"n_cols":12,"rows_kept":262,"merged":[[7,0,8,0],[7,1,8,3],[7,4,8,4],[7,5,8,5],[7,6,8,6],[7,7,8,8],[7,9,8,9],[9,1,9,3],[10,1,10,3],[10,8,11,8],[11,1,11,3],[12,2,12,3],[12,4,14,4],[13,2,13,3],[14,2,14,3],[15,1,15,3],[16,1,16,3],[17,1,17,3],[18,1,18,3],[19,2,19,3],[30,2,30,3],[31,2,31,3],[32,1,32,3],[33,2,33,3],[34,8,39,8],[44,2,44,3],[45,1,45,3],[46,2,46,3],[49,2,49,3],[50,2,50,3],[51,4,53,4],[54,2,54,3],[55,2,55,3],[56,4,57,4],[58,2,58,3],[59,1,59,3],[60,1,60,3],[61,1,61,3],[62,1,62,3],[63,2,63,3],[64,1,64,3],[65,2,65,3],[66,1,66,3],[67,2,67,3],[68,1,68,3],[69,2,69,3],[70,1,70,3],[71,2,71,3],[72,1,72,3],[73,1,73,3],[74,1,74,3],[75,2,75,3],[76,2,76,3],[77,2,77,3],[78,2,78,3],[79,2,79,3],[80,2,80,3],[81,2,81,3],[82,2,82,3],[83,2,83,3],[83,8,87,8],[84,2,84,3],[85,2,85,3],[86,2,86,3],[87,2,87,3],[88,2,88,3],[89,2,89,3],[90,1,90,3],[91,1,91,3],[92,1,92,3],[93,2,93,3],[93,8,99,8],[94,2,94,3],[95,2,95,3],[96,2,96,3],[97,2,97,3],[98,2,98,3],[99,2,99,3],[100,2,100,3],[101,2,101,3],[102,2,102,3],[103,1,103,3],[104,1,104,3],[105,1,105,3],[106,2,106,3],[106,8,111,8],[107,4,109,4],[110,2,110,3],[111,2,111,3],[112,2,112,3],[113,1,113,3],[114,1,114,3],[115,1,115,3],[116,2,116,3],[120,2,120,3],[121,1,121,3],[122,1,122,3],[123,1,123,3],[124,1,124,3],[125,2,125,3],[129,2,129,3],[130,2,130,3],[133,2,133,3],[134,1,134,3],[135,1,135,3],[136,1,136,3],[137,2,137,3],[140,2,140,3],[141,2,141,3],[142,2,142,3],[143,1,143,3],[144,1,144,3],[145,1,145,3],[146,2,146,3],[149,2,149,3],[150,1,150,3],[150,8,152,8],[151,2,151,3],[154,2,154,3],[155,1,155,3],[156,2,156,3],[159,1,159,3],[160,1,160,3],[161,2,161,3],[162,1,162,3],[163,1,163,3],[164,1,164,3],[165,2,165,3],[172,2,172,3],[173,1,173,3],[174,1,174,3],[175,1,175,3],[176,2,176,3],[176,8,180,8],[180,2,180,3],[181,2,181,3],[188,1,188,3],[189,1,189,3],[190,1,190,3],[191,2,191,3],[191,8,195,8],[195,2,195,3],[196,1,196,3],[197,1,197,3],[199,1,199,3],[200,2,200,3],[201,2,201,3],[202,1,202,3],[203,2,203,3],[203,8,205,8],[204,2,204,3],[207,1,207,3],[207,8,208,8],[208,1,208,3],[211,1,211,3],[212,1,212,3],[213,2,213,3],[213,8,218,8],[214,4,217,4],[218,2,218,3],[219,2,219,3],[219,8,221,8],[220,2,220,3],[221,2,221,3],[222,2,222,3],[223,2,223,3],[224,2,224,3],[225,2,225,3],[226,2,226,3],[227,1,227,3],[228,1,228,3],[229,2,229,3],[232,2,232,3],[233,2,233,3],[234,2,234,3],[235,2,235,3],[240,1,240,3],[241,1,241,3],[242,1,242,3],[243,1,243,3],[244,1,244,3],[245,1,245,3],[246,1,246,3],[249,1,249,3],[250,1,250,3],[251,1,251,3],[252,1,252,3]]}
[]
[]
["KERTAS KERJA PENILAIAN MANDIRI KINERJA PEMBINA/PENANGGUNGJAWAB"]
["PENYELENGGARAAN PELAYANAN PUBLIK PADA PEMERINTAH KABUPATEN MAGELANG"]
["TAHUN 2013"]
["SKPD/UNIT KERJA : "]
[]
["NO","KOMPONEN, KINERJA, INDIKATOR DAN LANGKAH KERJA",null,null,"NILAI MAKS","HASIL KERJA/PENILAIAN","NILAI","DOKUMEN PENDUKUNG",null,"KETERANGAN"]
[]
["A.","PENILAIAN IMPLEMENTASI UU 25/2009 TENTANG PELAYANAN PUBLIK"]
["1.","Kebijakan Tentang Penyelenggaraan Pelayanan Publik.",{"$nulls":6},"Softcopy dan hardcopy peraturan/kebijakan pimpinan.","Seluruh SKPD",null,1]
["1.1","Terbitnya/adanya peraturan/kebijakan pimpinan instansi dalam rangka mendorong penerapan UU 25/2009."]
[null,"a.","Ada dan mengacu sepenuhnya UU No. 25/2009",null,30,"a/b/c",{"$f":"IF(F13=\"a\",30,IF(F13=\"b\",15,IF(F13=\"c\",0,\"Error\")))","v":"Error"}]
[null,"b.","Ada, mengacu sebagian UU No. 25/2009"]
[null,"c.","Tidak ada"]
[null,"Nilai a = 30; b = 15; c = 0"]
[null,"Jumlah nilai KA 1",null,null,30,null,{"$f":"G13","v":"Error"}]
["2.","Pembinaan, Pengawasan, dan Evaluasi Pelayanan Publik."]
["2.1","Terlaksananya pembinaan pelayanan publik."]
[null,"1.","Jumlah pembinaan oleh Pembina (dalam bentuk rapat, FGD, sosialisasi, seminar) yang didukung bukti dokumen berkenaan dengan penerapan UU No. 25/2009 dengan materi a.l:",null,20,"Isikan frekuensi pembinaan ",{"$f":"IF(F20>20,\"error01\",IF(F20>5,20,IF(F20<5.001,F20*4,\"Error\")))","v":"error01"},null,"Dokumen pelaksanaan pembinaan.","Seluruh SKPD",null,2]
[null,null,"a.","standar pelayanan;"]
[null,null,"b.","maklumat pelayanan;"]
[null,null,"c.","sistem informasi;"]
[null,null,"d.","pengelolaan sarana, prasarana, dan/atau fasilitas pelayanan publik;"]
[null,null,"e.","pengelolaan pengaduan;"]
[null,null,"f.","hak dan kewajiban penyelenggara dan pelaksana;"]
[null,null,"g.","peran serta masyarakat;"]
[null,null,"h.","penilaian kinerja;"]
[null,null,"i.","ketentuan sanksi;"]
[null,null,"j.","lain-lain."]
[null,null,"Setiap kali pembinaan dinilai 4; Nilai maksimal: 20"]
[null,null,"Jumlah Pembinaan: a=5kali atau lebih; b=4 kali; c=3 kali; d=2 kali; e=1 kali; dan f=tidak ada pembinaan."]
["2.2","Terlaksananya pengawasan/evaluasi pelayanan publik."]
[null,"1.","Jumlah pengawasan/evaluasi yang didukung bukti dokumen berkenaan dengan penerapan UU No. 25/2009 (Jumlah “Laporan Hasil Perkembangan Kinerja Pelayanan Publik” oleh Pembina atau “Laporan Hasil Pelaksanaan Penyelenggaraan Pelayanan Publik Di Seluruh Satuan Kerja Pelayanan Publik” oleh Penanggungjawab, atau dokumen lainnya yang serupa)  dengan lingkup materi a.l:",null,20,"Isikan frekuensi pengawasan/ monev ",{"$f":"IF(F34>20,\"error01\",IF(F34>5,20,IF(F34<5.001,F34*4,\"Error\")))","v":"error01"},null,"Laporan Hasil Perkembangan Kinerja Pelayanan Publik oleh Pembina;\n\natau \n","Seluruh SKPD",null,3]
[null,null,"a.","standar pelayanan;",{"$nulls":4},"Laporan Hasil Pelaksanaan Penyelenggaraan Pelayanan Publik di Seluruh Satuan Kerja Pelayanan Publik oleh Penanggungjawab "]
[null,null,"b.","maklumat pelayanan;"]
[null,null,"c.","sistem informasi;"]
[null,null,"d.","pengelolaan sarana, prasarana, dan/atau fasilitas pelayanan publik;"]
[null,null,"e.","pengelolaan pengaduan;"]
[null,null,"f.","hak dan kewajiban penyelenggara dan pelaksana;"]
[null,null,"g.","peran serta masyarakat;",{"$nulls":4},"atau "]
[null,null,"h.","penilaian kinerja;"]
[null,null,"i.","ketentuan sanksi;",{"$nulls":4},"dokumen lainnya yang serupa"]
[null,null,"j.","lain-lain."]
[null,null,"Setiap kali pengawasan (termasuk evaluasi yang dilakukan oleh satuan kerja yang ditangani oleh pembina/penanggungjawab) dinilai 4; Nilai maksimal: 20"]
["2.3","Terlaksananya tindak lanjut hasil pengawasan/evaluasi pelayanan publik."]
[null,"1.","Jumlah laporan pelaksanaan tindak lanjut pengawasan/evaluasi oleh Pembina (Jumlah “Laporan Hasil Perkembangan Kinerja Pelayanan Publik” atau “Laporan Hasil Pelaksanaan Penyelenggaraan Pelayanan Publik di Seluruh Satuan Kerja Pelayanan Publik”).",null,20,"Isikan frekuensi tindak lanjut ",{"$f":"IF(F47>50,\"error01\",IF(F47>5,20,IF(F47<5.001,F47*4,\"Error\")))","v":"error01"},"a","Softcopy dan hardcopy Dokumentasi pertemuan resmi (rapat, FGD, sosialisasi, seminar) terkait materi pembinaan penerapan pelayanan publik.\n","Seluruh SKPD",null,4]
[{"$nulls":7},"b","“Laporan Hasil Perkembangan Kinerja Pelayanan Publik” atau dokumen sejenis yang disampaikanPembina Pemerintah Kabupaten kepada DPRD Kabupaten dan Gubernur setempat.",null,null,5]
[{"$nulls":7},"c","“Laporan Hasil Pelaksanaan Penyelenggaraan Pelayanan Publik Di Seluruh Satuan Kerja Pelayanan Publik” atau dokumen sejenis yang disampaikan Penanggung Jawab kepada Pembina.",null,null,6]
[null,null,"Setiap laporan pelaksanaan tindak lanjut pengawasan/evaluasi dinilai 4; Nilai maksimal: 20"]
[null,"2.","Adanya peraturan/kebijakan yang mengatur pemberian penghargaan kepada pelaksana yang berprestasi dalam penyelenggaraan pelayanan publik.",{"$nulls":6},"Seluruh SKPD"]
[null,null,"a.","Sudah ada, dan diimplementasikan",15,"a/b/c",{"$f":"IF(F52=\"a\",15,IF(F52=\"b\",5,IF(F52=\"c\",0,\"Error\")))","v":"Error"},null,"Softcopy dan hardcopy Peraturan/kebijakan pemberian penghargaan kepada pelaksana yang berprestasi dalam penyelenggaraan pelayanan publik.",null,null,7]
[null,null,"b.","Sudah ada, tidak diimplementasikan"]
[null,null,"c.","Tidak ada"]
[null,null,"Nilai a = 15; b = 7; c = 0"]
[null,"3.","Adanya peraturan/kebijakan pengenaan sanksi atas hasil evaluasi kepada pelaksana yang melakukan pelanggaran atas penyelenggaraan pelayanan publik.",{"$nulls":6},"Seluruh SKPD"]
[null,null,"a.","Ada",15,"a/b",{"$f":"IF(F57=\"a\",15,IF(F57=\"b\",0,\"Error\"))","v":"Error"},null,"Softcopy dan hardcopy Peraturan/kebijakan pengenaan sanksi atas hasil evaluasi kepada pelaksana yang melakukan pelanggaran atas penyelenggaraan pelayanan publik."]
[null,null,"b.","Tidak ada"]
[null,null,"Nilai a = 15; b = 0"]
[null,"Jumlah nilai KA 2-3",null,null,50,null,{"$f":"G57+G52+G47","v":{"$error":"#VALUE!"}}]
[null,"Jumlah nilai KA 2",null,null,90,null,{"$f":"G60+G34+G20","v":{"$error":"#VALUE!"}}]
["3.","Pembinaan Teknis Terhadap Unit Pelayanan Publik."]
["3.1","Terlaksananya sosialisasi kebijakan pelayanan publik (aspek-aspek dalam UU 25/2009) kepada unit pelayanan publik."]
[null,"1.","Jumlah laporan pelaksanaan sosialisasi kebijakan pelayanan publik pada unit pelayanan publik.\nCatatan: setiap kali sosialisasi dinilai 2; Nilai maksimal 20.",null,20,"Isikan frekuensi sosialisasi ",{"$f":"IF(F64>50,\"error01\",IF(F64>10,20,IF(F64<10.001,F64*2,\"Error\")))","v":"error01"},null,"Softcopy dan hardcopy dokumen Laporan pelaksanaan sosialisasi kebijakan pelayanan publik.","Seluruh SKPD",null,8]
["3.2","Terlaksananya bimbingan teknis kepada pegawai unit pelayanan berkaitan dengan substansi tugas pokok unit pelayanannya."]
[null,"1.","Jumlah laporan pelaksanaan bimbingan teknis kepada pegawai unit pelayanan tentang tugas pokok unit pelayanan publiknya.\nCatatan: setiap kali bimbingan teknis dinilai 4; Nilai maksimal 20.",null,20,"Isikan frekuensi bimbingan teknis ",{"$f":"IF(F66>50,\"error01\",IF(F66>5,20,IF(F66<5.001,F66*4,\"Error\")))","v":"error01"},null,"Softcopy dan hardcopy dokumen Laporan pelaksanaan bimbingan teknis kepada pegawai unit pelayanan.","Seluruh SKPD",null,9]
["3.3","Terpantau dan terevaluasinya pelaksanaan kebijakan pelayanan publik."]
[null,"1.","Jumlah “Laporan Hasil Pemantauan dan Evaluasi Penyelenggaraan Pelayanan Publik” (yang memuat: capaian dan target; kesenjangan dan permasalahannya, simpulan dan rekomendasi yang mengacu standar pelayanan).\nCatatan: setiap kali monev dinilai 2; Nilai maksimal 10.",null,10,"Isikan jumlah laporan monev ",{"$f":"IF(F68>50,\"error01\",IF(F68>5,10,IF(F68<5.001,F68*2,\"Error\")))","v":"error01"},null,"Softcopy dan hardcopy dokumen “Laporan Hasil Pemantauan dan Evaluasi Penyelenggaraan Pelayanan Publik”","Seluruh SKPD\n",null,10]
["3.4","Unit pelayanan yang menindaklanjuti hasil monitoring dan evaluasi."]
[null,"1.","Jumlah unit pelayanan yang menindaklanjuti “Laporan Hasil Pemantauan dan Evaluasi Penyelenggaraan Pelayanan Publik”.\nCatatan: Setiap unit yang menindaklanjuti hasil monev dinilai 2; Nilai Maksimal 10.",null,10,"Isikan jumlah tindak lanjut hasil monev ",{"$f":"IF(F70>50,\"error01\",IF(F70>5,10,IF(F70<5.001,F70*2,\"Error\")))","v":"error01"},null,"Softcopy dan hardcopy dokumen “Laporan Tindak Lanjut Hasil Pemantauan dan Evaluasi Penyelenggaraan Pelayanan Publik”","- seluruh SKPD\n- seluruh UPT (dikoordinir oleh masing-masing SKPD terkait)",null,11]
["3.5","Unit pelayanan yang mendapatkan penghargaan baik dari pembina maupun pihak lainnya."]
[null,"1.","Jumlah penghargaan yang diterima unit pelayanan publik karena menunjukkan prestasi kerja yang baik.\nCatatan: setiap penghargaan dinilai 1, nilai maksimal 10.",null,10,"Isikan jumlah penghargaan yang diterima Unit",{"$f":"IF(F72>50,\"error01\",IF(F72>10,10,IF(F72<10.001,F72*1,\"Error\")))","v":"error01"},null,"Dokumen Penghargaan yang diterima unit pelayanan publik.","- seluruh SKPD\n- seluruh UPT (dikoordinir oleh masing-masing SKPD terkait)",null,12]
[null,"Jumlah nilai KA 3",null,null,70,null,{"$f":"G64+G66+G68+G70+G72","v":{"$error":"#VALUE!"}}]
["4.","Pelayanan Terpadu Satu Pintu (PTSP)."]
["4.1","Terbentuk dan terlaksananya PTSP."]
[null,"a.","Adanya peraturan/kebijakan pembentukan/penetapan PTSP.",null,10,"a/b",{"$f":"IF(F76=\"a\",10,IF(F76=\"b\",0,\"Error\"))","v":"Error"},null,"Softcopy dan hardcopy dokumen pembentukan/penetapan, termasuk jenis pelayanan dan kewenangan yang dilimpahkan kepada Kepala PTSP.","Bagian Organisasi",null,13]
[null,null,"Catatan: sudah dibentuk = 10; belum dibentuk = 0"]
[null,"b.","Adanya peraturan/kebijakan yang mengatur pelimpahan/pendelegasian wewenang kepada Kepala PTSP.",null,10,"a/b",{"$f":"IF(F78=\"a\",10,IF(F78=\"b\",0,\"Error\"))","v":"Error"},null,null,"Bagian Organisasi"]
[null,null,"Catatan: Sudah ditetapkan = 10 ; belum ada ketetapan = 0"]
[null,"c.","Jumlah jenis pelayanan pada PTSP.",null,15,"Isikan jumlah jenis pelayanan pada PTSP",{"$f":"IF(F80>150,\"error01\",IF(F80>15,15,IF(F80<15.001,F80*1,\"Error\")))","v":"error01"},null,null,"BPMPPT"]
[null,null,"Catatan: Setiap jenis pelayanan dinilai 1: jumlah maksimal = 15."]
[null,"d.","Jumlah/% jenis pelayanan pada PTSP yang telah dilimpahkan/ didelegasikan kewenangannya kepada Kepala PTSP.",null,15,"Isikan jumlah jenis pelayanan yang dilimpahkan/didelegasikan kewenangannya ",{"$f":"IF(F82>150,\"error01\",IF(F82>15,15,IF(F82<15.001,F82*1,\"Error\")))","v":"error01"},null,null,"BPMPPT"]
[null,null,"Catatan: Setiap jenis pelayanan yang telah dilimpahkan dinilai 1; jumlah maksimum 15."]
[null,"e.","Peringkat kualifikasi PTSP tertinggi yang pernah diperoleh.",null,25,"a/b/c/d/e/f",{"$f":"IF(F84=\"a\",25,IF(F84=\"b\",20,IF(F84=\"c\",15,IF(F84=\"d\",10,IF(F84=\"e\",5,IF(F84=\"f\",0,\"Error\"))))))","v":"Error"},null,"Softcopy dan hardcopy dokumen peringkat kualifikasi tertinggi yang pernah diperoleh PTSP tersebut.","BPMPPT",null,14]
[null,null,"a. Bintang 4 diberi nilai 25"]
[null,null,"b. Bintang 3 diberi nilai 20"]
[null,null,"c. Bintang 2 diberi nilai 15"]
[null,null,"d. Bintang 1 diberi nilai 10"]
[null,null,"e. Non Bintang diberi nilai 5"]
[null,null,"f. Tidak dinilai diberi nilai 0"]
[null,"Jumlah nilai KA 4",null,null,75,null,{"$f":"G76+G78+G80+G82+G84","v":{"$error":"#VALUE!"}}]
["5.","Evaluasi Kinerja Pelaksana Dalam Penyelenggaraan Pelayanan Publik."]
["5.1","Adanya kebijakan untuk meningkatkan kapasitas pelaksana, pemberian penghargaan, dan penegakan disiplin."]
[null,"a.","Adanya peraturan/kebijakan tentang peningkatan kapasitas pelaksana.",null,20,"a/b",{"$f":"IF(F94=\"a\",20,IF(F94=\"b\",0,\"Error\"))","v":"Error"},null," Softcopy dan hardcopy dokumen yang mengatur peningkatan kapasitas, pemberian penghargaan, pemberian sanksi, dan pemberian tugas belajar/diklat fungsional/teknis bagi pelaksana.","Seluruh SKPD",null,15]
[null,null,"Catatan: a. Ada = 20; Tidak ada = 0"]
[null,"b.","Adanya peraturan/kebijakan tentang pemberian penghargaan kepada pelaksana yang dinilai mempunyai prestasi kerja yang baik.",null,15,"a/b",{"$f":"IF(F96=\"a\",15,IF(F96=\"b\",0,\"Error\"))","v":"Error"},null,null,"Seluruh SKPD"]
[null,null,"Catatan: Ada = 20; Tidak ada = 0"]
[null,"c.","Adanya peraturan/kebijakan yang mengatur pemberian sanksi terhadap pelaksana yang meanggar penyelenggaraan pelayanan publik.",null,15,"a/b",{"$f":"IF(F98=\"a\",15,IF(F98=\"b\",0,\"Error\"))","v":"Error"},null,null,"Seluruh SKPD"]
[null,null,"Catatan: Ada = 15; Tidak ada = 0"]
[null,"d.","Jumlah pegawai yang ditugaskan untuk mengikuti tugas belajar, diklat fungsional/teknis minimal 24 jam.",null,20,"Isikan Nilai menurut perhitungan anda ",{"$f":"IF(F100>100,\"error01\",IF(F100>20,20,IF(F100<21,F100,\"Error\")))","v":"error01"},null,null,"Seluruh SKPD dan di cros chesk dg data di BKD"]
[null,null,"Catatan: Nilai tugas belajar S3: 3; S2: 2; diklat fungsional/teknis: 1; Nilai maksimal: 20"]
[null,"e.","Jumlah penghargaan yang diberikan kepada pegawai unit pelayanan publik yang menunjukkan prestasi kerja yang baik.",null,10,"Isikan jumlah penghargaan ",{"$f":"IF(F102>50,\"error01\",IF(F102>10,10,IF(F102<10.001,F102*1,\"Error\")))","v":"error01"},null,null,"Seluruh SKPD"]
[null,null,"Catatan: Nilai setiap penghargaan: 1; Nilai maksimal: 10"]
[null,"Jumlah nilai KA 5",null,null,80,null,{"$f":"G94+G96+G98+G100+G102","v":{"$error":"#VALUE!"}}]
["6.","Kebijakan Penyusunan, Penetapan Dan Penerapan Standar Pelayanan Serta Maklumat Pelayanan."]
["6.1","Tersedia dan terimplementasikannya standar pelayanan serta maklumat pelayanan."]
[null,"a.","Adanya peraturan/kebijakan instansi yang mendorong penyusunan, penetapan dan penerapan standar pelayanan dan maklumat pelayanan yang mengacu UU 25/2009.",null,25,"a/b/c",{"$f":"IF(F107=\"a\",25,IF(F107=\"b\",10,IF(F107=\"c\",0,\"Error\")))","v":"Error"},null,"Softcopy dan hardcopy dokumen yang mendorong dan menginformasikan penyusunan, penetapan dan penerapan standar pelayanan dan maklumat pelayanan yang mengacu UU 25/2009.","Seluruh SKPD",null,16]
[null,null,"a.","Ada dan mengacu UU No. 25/2009."]
[null,null,"b.","Ada, sebagian mengacu UU No. 25/2009."]
[null,null,"c.","Tidak ada."]
[null,null,"Catatan: Nilai a = 25; b = 10; c = 0"]
[null,"b.","Jumlah unit pelayanan yang sudah menyusun, menetapkan dan menerapkan standar pelayanan publik (SPP).",null,50,"Isikan jumlah unit pelayanan yang telah menerapkan SP ",{"$f":"IF(F112>100,\"error01\",IF(F112>10,50,IF(F112<10.001,F112*5,\"Error\")))","v":"error01"},null,null,"Seluruh SKPD dan UPT"]
[null,null,"Catatan: Nilai setiap unit = 5; Nilai maksimal = 50"]
[null,"Jumlah nilai KA 6",null,null,75,null,{"$f":"G112+G107","v":{"$error":"#VALUE!"}}]
["7.","Larangan Bagi Pelaksana."]
["7.1","Adanya Larangan Bagi Pelaksana."]
[null,"a.","Adanya peraturan/kebijakan tentang larangan bagi Pelaksana sebagaimana dimaksud dalam UU No. 25/2009 Pasal 17.",null,25,"a/b/c",{"$f":"IF(F117=\"a\",25,IF(F117=\"b\",10,IF(F117=\"c\",0,\"Error\")))","v":"Error"},null,"Softcopy dan hardcopy dokumen tentang larangan:","Seluruh SKPD",null,17]
[null,null,"a.","Ada, mencakup seluruh unsur.",{"$nulls":3},"a.","pelaksana merangkap sebagai komisaris atau pengurus organisasi usaha bagi pelaksana yang berasal dari lingkungan instansi pemerintah, BUMN, dan BUMD. "]
[null,null,"b.","Ada, tidak mencakup seluruh unsur.",{"$nulls":3},"b.","pelaksana meninggalkan tugas dan kewajiban, kecuali mempunyai alasan yang jelas, rasional, dan sah sesuai dengan peraturan perundang-undangan."]
[null,null,"c.","Tidak ada",{"$nulls":3},"c.","menambah pelaksana tanpa persetujuan penyelenggara."]
[null,null,"Nilai a = 25; b = 10; c = 0",{"$nulls":4},"d.","membuat perjanjian kerja sama dengan pihak lain tanpa persetujuan penyelenggara."]
[{"$nulls":7},"e.","melanggar asas penyelenggaraan pelayanan publik."]
[null,"Jumlah nilai KA 7",null,null,25,null,{"$f":"G117","v":"Error"}]
["8.","Sistem Informasi Pelayanan Publik."]
["8.1","Terbangunnya sistem informasi pelayanan publik.",{"$nulls":7},"Seluruh SKPD"]
[null,"a.","Adanya kebijakan tentang sistem informasi pelayanan publik yang mengacu pada pasal 23 ayat (4) UU No. 25/2009.",null,25,"a/b/c",{"$f":"IF(F126=\"a\",25,IF(F126=\"b\",10,IF(F126=\"c\",0,\"Error\")))","v":"Error"},null,"Softcopy dan hardcopy dokumen:",null,null,18]
[null,null,"a.","Ada, mencakup seluruh unsur.",{"$nulls":4},"a. pengaturan sistem informasi pelayanan publik; dan"]
[null,null,"b.","Ada, tidak mencakup seluruh unsur.",{"$nulls":4},"b. pembentukan PPID."]
[null,null,"c.","Tidak ada."]
[null,null,"Nilai a = 25; b = 10; c = 0"]
[null,"b.","Adanya penunjukan Pejabat Pengelola Informasi dan Dokumentasi (PPID).",null,15,"a/b",{"$f":"IF(F131=\"a\",15,IF(F131=\"b\",0,\"Error\"))","v":"Error"},null,null,"Bagian Organisasi"]
[null,null,"a.","Sudah ditunjuk;",{"$nulls":5},"Diskominfo"]
[null,null,"b.","Belum ditunjuk."]
[null,null,"Nilai a = 15; b = 0"]
[null,"Jumlah nilai KA 8",null,null,40,null,{"$f":"G131+G126","v":{"$error":"#VALUE!"}}]
["9.","Pelayanan Khusus."]
["9.1","Adanya kebijakan dalam pemberian pelayanan khusus kepada masyarakat tertentu atau rentan."]
[null,"a.","Adanya kebijakan pemberian pelayanan khusus kepada masyarakat tertentu atau rentan dan pelayanan berjenjang.",null,15,"a/b",{"$f":"IF(F138=\"a\",15,IF(F138=\"b\",0,\"Error\"))","v":"Error"},null,"Softcopy dan hardcopy dokumen pengaturan pemberian pelayanan khusus kepada masyarakat tertentu atau rentan.","Seluruh SKPD dan UPT",null,19]
[null,null,"a.","Ada"]
[null,null,"b.","Tidak ada"]
[null,null,"Nilai a = 15; b = 0"]
[null,"b.","Jumlah unit pelayanan yang telah mengimplementasikan pemberian pelayanan khusus kepada masyarakat tertentu atau rentan.",null,10,"Isikan jumlah unit dengan pelayanan khusus",{"$f":"IF(F142>50,\"error01\",IF(F142>10,10,IF(F142<10.001,F142*1,\"Error\")))","v":"error01"},null,null,"Seluruh SKPD dan UPT"]
[null,null,"Tiap unit dinilai = 1; Nilai maksimal= 10"]
[null,"Jumlah nilai KA-9",null,null,25,null,{"$f":"G142+G138","v":{"$error":"#VALUE!"}}]
["10.","Pengelolaan Pengaduan."]
["10.1","Adanya kebijakan pengelolaan pengaduan"]
[null,"a.","Adanya peraturan/kebijakan pimpinan instansi yang mengatur pengelolaan pengaduan beserta pelaksana yang bertanggung jawab.",null,20,"a/b",{"$f":"IF(F147=\"a\",20,IF(F147=\"b\",0,\"Error\"))","v":"Error"},null,"Softcopy dan hardcopy dokumen:","Seluruh SKPD "]
[null,null,"a.","Ada",{"$nulls":3},"a.","peraturan/kebijakan pimpinan instansi yang mengatur mekanisme pengelolaan pengaduan beserta pelaksana yang bertanggung jawab.",null,null,20]
[null,null,"b.","Tidak ada",{"$nulls":3},"b.","laporan hasil pemantauan dan evaluasi pengelolaan pengaduan penyelenggaraan pelayanan publik.",null,null,21]
[null,null,"Nilai a = 20; b = 0"]
["10.2","Tersusunnya mekanisme pengelolaan pengaduan.",{"$nulls":7},"Seluruh SKPD dan UPT"]
[null,"a.","Mekanisme pengelolaan pengaduan sudah ditetapkan.",null,20,"a/b",{"$f":"IF(F152=\"a\",20,IF(F152=\"b\",0,\"Error\"))","v":"Error"}]
[null,null,"a.","Sudah."]
[null,null,"b.","Belum."]
[null,null,"Nilai a = 20; b = 0"]
["10.3","Terpantau dan terevaluasinya pengelolaan pengaduan.",{"$nulls":7},"Seluruh SKPD"]
[null,"a.","Monitoring dan evaluasi pengelolaan pengaduan oleh penyelenggara pelayanan publik sudah dilakukan",null,20,"a/b",{"$f":"IF(F157=\"a\",20,IF(F157=\"b\",0,\"Error\"))","v":"Error"}]
[null,null,"a.","Sudah."]
[null,null,"b.","Belum."]
[null,"Nilai a = 20 ; b = 0"]
["10.4","Unit pengelola pengaduan",{"$nulls":7},"Seluruh SKPD"]
[null,"a.","Jumlah unit pelayanan yang menyediakan sarana pengaduan dalam pengelolaan pengaduan.\nSetiap unit dinilai 2; nilai maksimal : 10.",null,10,"Isikan jumlah unit dengan sarana pengaduan",{"$f":"IF(F162>100,\"error01\",IF(F162>5,10,IF(F162<6,F162*2,\"Error\")))","v":"error01"}]
[null,"Jumlah nilai KA-10",null,null,70,null,{"$f":"G147+G152+G157+G162","v":{"$error":"#VALUE!"}}]
["11.","Peran Serta Masyarakat."]
["11.1","Adanya kebijakan pengikutsertaan masyarakat dalam penyelenggaraan pelayanan publik.",{"$nulls":7},"Seluruh SKPD"]
[null,"a.","Adanya peraturan/kebijakan yang mengatur pengikutsertaan masyarakat dalam penyelenggaraan pelayanan publik dengan cakupan aspek:",null,30,"Isikan jumlah aspek dalam kebijakan",{"$f":"IF(F166>10,\"error01\",IF(F166>6,30,IF(F166<6,F166*5,\"Error\")))","v":"error01"},null,"Softcopy dan hardcopy dokumen yang mengatur pengikutsertaan masyarakat dalam penyelenggaraan pelayanan publik.",null,null,22]
[null,null,"a.","mekanisme pelibatan masyarakat;"]
[null,null,"b.","pengaturan kelompok masyarakat yang diikutsertakan;"]
[null,null,"c.","penyusunan kebijakan pelayanan publik;"]
[null,null,"d.","penyusunan standar pelayanan;"]
[null,null,"e.","pengawasan masyarakat;"]
[null,null,"f.","evaluasi dan pemberian penghargaan."]
[null,null,"Setiap aspek dalam kebijakan dinilai 5; nilai maksimal 30"]
[null,"Jumlah nilai KA-11",null,null,30,null,{"$f":"G166","v":"error01"}]
["12.","Survey Indeks Kepuasan Masyarakat (IKM)."]
["12.1","Adanya kebijakan survei IKM.",{"$nulls":7},"Seluruh SKPD"]
[null,"1.","Adanya peraturan/kebijakan yang mengatur pelaksanaan survey IKM dan tindak lanjutnya oleh penyelenggara.",null,20,"a/b/c",{"$f":"IF(F177=\"a\",20,IF(F177=\"b\",10,IF(F177=\"c\",0,\"Error\")))","v":"Error"},null,"Softcopy dan hardcopy dokumen yang mengatur pelaksanaan survey IKM dan tindak lanjutnya oleh penyelenggara.",null,null,23]
[null,null,"a.","Ada, lengkap"]
[null,null,"b.","Ada, tetapi tidak mencakup tindak lanjut"]
[null,null,"c.","Tidak ada"]
[null,null,"Catatan: Nilai a = 20; b = 10 ; c = 0"]
[null,"2.","Terlaksananya survey IKM.",null,25,null,{"$f":"IF((G184+G185)>25,25,IF((G184+G185)<25.1, (G185+G184),\"Error\"))","v":{"$error":"#VALUE!"}},null,null,"Seluruh SKPD dan UPT"]
[null,null,"1.","Jumlah unit pelayanan yang telah melaksanakan survey IKM."]
[{"$nulls":3},"a. Setiap unit dengan menggunakan KepMenPAN No. 25 Tahun 2004 mendapat nilai 3.",null,"Isikan jumlah unit yang survey IKM dg Kepmen 25",{"$f":"IF(F184>100,\"error01\",IF(F184>8,25,IF(F184<9,F184*3,\"Error\")))","v":"error01"},null,"Softcopy dan hardcopy cakupan Laporan Hasil Penyusunan Indeks Kepuasan Masyarakat.",null,null,24]
[{"$nulls":3},"b. Setiap unit dengan menggunakan selain KepMenPAN No. 25 Tahun 2004 mendapat nilai 1.",null,"Isikan jumlah unit yang survei IKM tidak dengan Kepmen 25/2004 ",{"$f":"IF(F185>100,\"error01\",IF(F185>25,25,IF(F185<26,F185*1,\"Error\")))","v":"error01"}]
[{"$nulls":3},"Nilai maksimal: 25"]
[null,null,"2.","Jumlah unit pelayanan yang menindaklanjuti hasil survei IKM.",15,"Isikan jumlah unit yang menindak lanjuti hasil survey IKM ",{"$f":"IF(F187>100,\"error01\",IF(F187>5,15,IF(F187<6,F187*3,\"Error\")))","v":"error01"},null,null,"Seluruh SKPD dan UPT\n"]
[{"$nulls":3},"Setiap unit dinilai 3; Nilai maksimal = 15"]
[null,"Jumlah nilai KA-12",null,null,60,null,{"$f":"G177+G182+G187","v":{"$error":"#VALUE!"}}]
["13.","Pengelolaan Sarana, Prasarana, dan/atau Fasilitas Pelayanan Publik."]
["13.1","Terkelolanya Sarana, Prasarana, dan/atau Fasilitas Pelayanan Publik.",{"$nulls":7},"Seluruh SKPD"]
[null,"a.","Adanya peraturan/kebijakan yang mengatur pengelolaan sarana, prasarana, dan/atau fasilitas dalam penyelenggaraan pelayanan publik.",null,30,"a/b/c",{"$f":"IF(F192=\"a\",30,IF(F192=\"b\",15,IF(F192=\"c\",0,\"Error\")))","v":"Error"},null,"Dokumen yang mengatur pengelolaan sarana, prasarana, dan/atau fasilitas dalam penyelenggaraan pelayanan publik.",null,null,25]
[null,null,"a.","Ada, dan cukup lengkap."]
[null,null,"b.","Ada, tetapi kurang lengkap."]
[null,null,"c.","Tidak ada."]
[null,null,"Nilai a = 30; b = 15; c = 0"]
[null,"Jumlah nilai KA-13",null,null,30,null,{"$f":"G192","v":"Error"}]
[null,"Jumlah nilai KA-UPP",null,null,700,null,{"$f":"G17+G61+G73+G91+G104+G114+G123+G135+G144+G163+G174+G189+G197","v":{"$error":"#VALUE!"}}]
[]
["B.","PENILAIAN KINERJA PEMBINA/PENANGGUNGJAWAB"]
[null,"1.","Kebijakan Korporatisasi Unit Pelayanan."]
[null,null,"Jumlah unit pelayanan yang berdasar Keputusan Kepala Daerah ditetapkan untuk menerapkan pola pengelolaan keuangan badan layanan umum.",null,20,"Isikan jumlah unit dengan pengelolaan keuangan BLU ",{"$f":"IF(F202>20,\"error01\",IF(F202>4,20,IF(F202<5,F202*5,\"Error\")))","v":"error01"},null,"Keputusan Kepala Daerah tentang penetapan/penerapan pola pengelolaan keuangan badan layanan umum pada unit pelayanan dimaksud.","Seluruh SKPD (RSUD atau yang lainnya) ",null,26]
[null,"Jumlah nilai KB 1",null,null,20,null,{"$f":"G202","v":"error01"}]
[2.1,null,"Penerapan Standar Pelayanan Minimal (SPM) dan Human Developmen Index (HDI).",{"$nulls":5},"Softcopy dan hardcopy dokumen peraturan/kebijakan penerapan standar pelayanan minimal (SPM).","Seluruh SKPD",null,27]
[null,null,"Terimplementasikannya SPM dan HDI."]
[{"$nulls":3},"Adanya peraturan/kebijakan tentang penerapan standar pelayanan minimal (SPM).",20,"a/b",{"$f":"IF(F206=\"a\",20,IF(F206=\"b\",0,\"Error\"))","v":"Error"}]
[{"$nulls":3},"Catatan: Nilai: a (ada) = 20;   b (Tidak ada) = 0"]
["2.2","Persentase capaian target penerapan standar pelayanan minimal (SPM) bidang pendidikan (hanya untuk Pemerintah Kabupaten/Kota).\na. 80% - 100%  dinilai 15\nb. 60% - < 80% dinilai 10\nc. 25% - < 60%  dinilai 5\nd. < 25%             dinilai 0",null,null,15,"a/b/c/d",{"$f":"IF(F208=\"a\",15,IF(F208=\"b\",10,IF(F208=\"c\",5,IF(F208=\"d\",0,\"Error\"))))","v":"Error"},null,"Softcopy dan hardcopy dokumen laporan pelaksanaan SPM bidang pendidikan kabupaten/kota, kesehatan kabupaten/kota, dan laporan human development index kabupaten.","Dinas Pendidikan",null,28]
["2.3","Persentase capaian target penerapan standar pelayanan minimal (SPM) bidang kesehatan (hanya untuk Pemerintah Kabupaten/Kota).\na. 80% - 100%  dinilai 15\nb. 60% - < 80% dinilai 10\nc. 25% - < 60%  dinilai 5\nd. < 25%             dinilai 0",null,null,15,"a/b/c/d",{"$f":"IF(F209=\"a\",15,IF(F209=\"b\",10,IF(F209=\"c\",5,IF(F209=\"d\",0,\"Error\"))))","v":"Error"},null,null,"Dinas Kesehatan"]
[null,null,"6.","Persentase rata-rata kenaikan Human Development Index (HDI) dalam tahun penilaian.",10,"Isikan % rata-rata kenaikan HDI ",{"$f":"IF(F210>10,\"error01\",IF(F210>3.33334,10,IF(F210<3.33331,F210*3,\"Error\")))","v":"error01"},null,null,"Bappeda / Bagian Adm Bangda"]
[{"$nulls":3},"Catatan: Setiap 1% rata-rata kenaikan dinilai 3; Nilai maksimal 10"]
[null,"Jumlah nilai KB 2 – Pemerintah Kabupaten/Kota",null,null,60,null,{"$f":"G206+G208+G209+G210","v":{"$error":"#VALUE!"}}]
["3.","Kebijakan Dalam Mendorong Pembangunan Ekonomi Daerah Beserta Outcomenya."]
[null,"1.","Adanya peraturan/keputusan/kebijakan yang mengatur kemudahan penanaman modal di daerah, seperti penyediaan lokasi, kemudahan perijinan, pembebasan pajak daerah untuk jangka waktu tertentu.",{"$nulls":5},"Softcopy dan hardcopy dokumen peraturan/kebijakan yang mengatur kemudahan penanaman modal di daerah, seperti penyediaan lokasi, kemudahan perijinan, pembebasan pajak daerah untuk jangka waktu tertentu.","- BPMPPT\n- Bagian Hukum\n\n",null,29]
[null,null,"a.","ditetapkan dengan peraturan daerah dinilai 10",10,"a/b/c/d",{"$f":"IF(F215=\"a\",10,IF(F215=\"b\",5,IF(F215=\"c\",2,IF(F215=\"d\",0,\"Error\"))))","v":"Error"}]
[null,null,"b.","ditetapkan dengan peraturan gubernur/bupati/walikota dinilai 5"]
[null,null,"c.","ditetapkan dengan keputusan gubernur/bupati/walikota dinilai 2"]
[null,null,"d.","Tidak ada"]
[null,null,"Catatan: Nilai a = 10; b =5; c = 2; d = 0"]
[null,"2.","Persentase rata-rata per tahun peningkatan produk domestik regional bruto (PDRB).",null,10,"Isikan %rata-rata peningkatan PDBR",{"$f":"IF(F220>20,\"error01\",IF(F220>5,10,IF(F220<5.001,F220*2,\"Error\")))","v":"error01"},null,"Softcopy dan hardcopy dokumen komparasi PDRB, PAD, lapangan kerja, dan angka kemiskinan (jika tersedia, diharapkan mulai tahun 2009).","Bagian Perekonomian/Bappeda/Bagian Adm Bangda",null,30]
[null,null,"Catatan: Setiap 1% rata-rata kenaikan dinilai 2; Nilai maksimal 10"]
[null,"3.","Persentase rata-rata kenaikan per tahun jumlah penerimaan PAD dalam 3 tahun terakhir.",null,10,"Isikan %rata-rata kenaikan PAD ",{"$f":"IF(F222>20,\"error01\",IF(F222>10,10,IF(F222<10.001,F222*1,\"Error\")))","v":"error01"},null,null,"DPPKAD\n"]
[null,null,"Catatan: Setiap 1% rata-rata kenaikan dinilai 1; Nilai maksimal 10"]
[null,"4.","Persentase rata-rata kenaikan per tahun penyediaan lapangan kerja dalam 3 tahun terakhir.",null,10,"Isikan %rata-rata kenaikan employment",{"$f":"IF(F224>20,\"error01\",IF(F224>10,10,IF(F224<10.001,F224*1,\"Error\")))","v":"error01"},null,null,"Disnakersostrans\n"]
[null,null,"Catatan: Setiap 1% rata-rata kenaikan dinilai 1; Nilai maksimal 10"]
[null,"5.","Persentase rata-rata per tahun penurunan angka kemiskinan dalam 3 tahun terakhir.",null,10,"Isikan %rata-rata penurunan angka kemiskinan",{"$f":"IF(F226>20,\"error01\",IF(F226>10,10,IF(F226<10.001,F226*1,\"Error\")))","v":"error01"},null,null,"Bappeda\n"]
[null,null,"Catatan: Setiap 1% rata-rata penurunan dinilai 1; Nilai maksimal 10"]
[null,"Jumlah nilai KB 3",null,null,50,null,{"$f":"G215+G220+G222+G224+G226","v":{"$error":"#VALUE!"}}]
["4.","Kebijakan Pengembangan dan Pemanfaatan e-Government."]
[null,"1.","Adanya peraturan/kebijakan pimpinan yang mengatur penerapan e-government (e-planning; e-budgeting; e-procurement; e-performance; e-office; e-reporting).",null,30,"a/b",{"$f":"IF(F230=\"b\",0,IF(F230=\"a\",G231,\"Error\"))","v":"Error"},null,"Softcopy dan hardcopy dokumen penerapan e-government.","Seluruh SKPD",null,31]
[null,null,"a.","ada kebijakan untuk setiap jenis aplikasi yang dibuat",null,"Isikan jumlah jenis aplikasi yang sudah ada",{"$f":"IF(F231>6.1,\"error01\",IF(F231<6.001,F231*5,\"Error\"))","v":"error01"}]
[null,null,"b.","Tidak ada kebijakan"]
[null,null,"Catatan: Nilai a = 5; b = 0; Nilai maksimal = 30"]
[null,"2.","Jumlah unit kerja yang menerapkan e-government.",null,10,"Isikan jumlah unit yang menerapkan e-gov",{"$f":"IF(F234>20,\"error01\",IF(F234>10,10,IF(F234<10.001,F234*1,\"Error\")))","v":"error01"},null,null,"Seluruh SKPD\n"]
[null,null,"Catatan: Nilai tiap unit kerja: 1; Nilai maksimal: 10"]
[null,"3.","Adanya situs instansi yang menyajikan informasi mutakhir tentang:",{"$nulls":6},"Seluruh SKPD"]
[null,null,"a.","Data umum yang memuat peraturan/keputusan/kebijakan.",5,"ada/tidak",{"$f":"IF(F237=\"ada\",5,IF(F237=\"tidak\",0,\"Error\"))","v":"Error"}]
[null,null,"b.","Profil",5,"ada/tidak",{"$f":"IF(F238=\"ada\",5,IF(F238=\"tidak\",0,\"Error\"))","v":"Error"}]
[null,null,"c.","Jenis pelayanan yang diberikan",5,"ada/tidak","Error"]
[null,null,"d.","Link pengelolaan pengaduan",5,"ada/tidak","Error"]
[null,"Sub jumlah nilai KB 4.3",null,null,20,null,{"$f":"SUM(G237:G240)","v":0}]
[null,"Sub jumlah nilai KB4",null,null,60,null,{"$f":"G230+G234+G241","v":{"$error":"#VALUE!"}}]
["5.","Penerapan SMM dan/atau ISO 9001-2008 dalam pelayanan publik.\n(untuk jenis/unit/satuan kerja yang sama hanya dihitung satu kali)."]
[null,"Terimplementasikannya SMM dan/atau ISO 9001-2008 dalam pelayanan publik."]
["5.1","Jumlah unit pelayanan yang telah menerapkan persyaratan sistem manajemen mutu ISO 9001-2008 (dibuktikan paling tidak dengan adanya manual mutu unit pelayanan sesuai ISO dimaksud).\nSetiap unit pelayanan dinilai 2; nilai maksimal: 10",null,null,10,"Isikan jumlah unit yang menerapkan SMM",{"$f":"IF(F245>50,\"error01\",IF(F245>5,10,IF(F245<5.001,F245*2,\"Error\")))","v":"error01"},null,"Softcopy dan hardcopy dokumen manual mutu dan/atau sertifikat sistem manajemen mutu  ISO 9001-2008.","Seluruh SKPD dan UPT\n",null,32]
["5.2","Jumlah satuan kerja pelayanan yang telah menerapkan persyaratan sistem manajemen mutu ISO 9001-2008 (dibuktikan paling tidak dengan adanya manual mutu satuan kerja pelayanan sesuai ISO dimaksud).\nSetiap satker dinilai 10; nilai maksimal: 20",null,null,20,"Isikan jumlah Satker yang menerapkan SMM",{"$f":"IF(F246>20,\"error01\",IF(F246>2,20,IF(F246<2.001,F246*10,\"Error\")))","v":"error01"},null,null,"Seluruh SKPD dan UPT\n\n"]
["5.3","Jumlah unit pelayanan yang telah mendapatkan Sertifikat Sistem Manajemen Mutu ISO 9001-2008. Nilai maksimal: 20",null,null,20,null,{"$f":"IF((G249+G248)>20,20,IF((G273+G272)<20.1, (G248+G249),\"Error\"))","v":{"$error":"#VALUE!"}},null,"Softcopy dan hardcopy Sertifikat","Seluruh SKPD dan UPT\n\n"]
[null,null,"a.","Bersertifikasi sebagian dinilai: 4",null,"Isikan jumlah Unit yang sebagian bersertifikat ISO",{"$f":"IF(F248>50,\"error01\",IF(F248>5,20,IF(F248<5.001,F248*4,\"Error\")))","v":"error01"}]
[null,null,"b.","Bersertifikasi secara menyeluruh dinilai: 10",null,"Isikan jumlah Unit yang seluruhnya bersertifikat ISO ",{"$f":"IF(F249>30,\"error01\",IF(F249>2,20,IF(F249<2.001,F249*10,\"Error\")))","v":"error01"}]
["5.4","Jumlah satuan kerja pelayanan yang telah mendapatkan sertifikat Sistem Manajeme Mutu ISO 9001-2008 secara menyeluruh.\na. Satuan kerja pelayanan bersertifikat SMM ISO 9001-2008 dinilai: 20\nb. Nilai maksimal: 60",null,null,60,"Isikan jumlah Satker yang  bersertifikat ISO",{"$f":"IF(F250>20,\"error01\",IF(F250>3,60,IF(F250<3.001,F250*20,\"Error\")))","v":"error01"},null,"Softcopy dan hardcopy Sertifikat","Seluruh SKPD dan UPT\n\n"]
[null,"Jumlah nilai KB 5",null,null,110,null,{"$f":"G245+G246+G247+G250","v":{"$error":"#VALUE!"}}]
[null,"Jumlah nilai KB-UPP",null,null,300,null,{"$f":"G203+G212+G228+G242+G251","v":{"$error":"#VALUE!"}}]
[null,"Jumlah nilai KA dan KB UPP",null,null,1000,null,{"$f":"G198+G252","v":{"$error":"#VALUE!"}}]
[]
[]
[{"$nulls":8},"..........................., ............................."]
[{"$nulls":8},"KEPALA SKPD"]
[]
[]
[]
[{"$nulls":8},"......................................."]
[{"$nulls":8},"NIP. ................................."]